Cogmind - Beta 11 X8 @@@ ROGUE MODE // 2021.11.20 @ 21:03:32 Player: biogoob Result: Destroyed by Y-54 Guardian with Gatling Laser Performance ------------- Evolutions (4) 2000 Regions Visited (8) 1600 Robots Destroyed (51) 255 Value Destroyed (1390) 1390 Prototype IDs (1) 20 Alien Tech Used (0) 0 Bonus (249) 249 TOTAL SCORE: 5514 Bonus ------- High Alert Combat Kills 43 Follower Combat Kills 206 Cogmind --------- Core Integrity 0/850 Matter 300/300 Energy 99/100 System Corruption 4% Temperature Cool (12) Movement Core (50) Location -6/Extension Parts ------- > --- POWER (1) -------- (None) > --- PROPULSION (4) --- (None) > --- UTILITY (8) ------ Advanced Signal Interpreter > --- WEAPON (2) ------- (None) > --- INVENTORY (5) ---- Improved Titanium Leg Gravmag Array Nuclear Pulse Thruster Phase Shifter Peak State ------------ > --- POWER ------------ Light Nuclear Core > --- PROPULSION ------- Improved Carbon-fiber Leg Improved Titanium Leg Improved Titanium Leg Flexi-carbon Leg > --- UTILITY ---------- Large Storage Unit Advanced Sensor Array Advanced Signal Interpreter Improved Terrain Scan Processor Target Analyzer Kinecellerator Improved Transmission Jammer Improved Medium Armor Plating > --- WEAPON ----------- Makeshift Axe CR-A16's Pointy Stick > --- INVENTORY -------- Aluminum Leg Improved Titanium Leg Gravmag Array Small Storage Unit Advanced Sensor Array Advanced Signal Interpreter Advanced Terrain Scanner Improved Medium Armor Plating Hacking Drone Bay EM Pulse Gun EM Pulse Cannon Improved Assault Rifle Datajack [Rating: 63] Favorites ----------- Power Ion Engine Engine Ion Engine Power Core Light Nuclear Core Propulsion Aluminum Leg Leg Aluminum Leg Hover Unit Improved Hover Unit Utility Large Storage Unit Device Cooling System Storage Large Storage Unit Processor Signal Interpreter Protection Reflective Plating Weapon Improved Assault Rifle Energy Gun EM Pulse Gun Energy Cannon EM Pulse Cannon Ballistic Gun Improved Assault Rifle Launcher Grenade Launcher Slashing Weapon Makeshift Axe Piercing Weapon CR-A16's Pointy Stick Special Melee Weapon Datajack Build | -11 -10 -10 -9 -9 -7 -6 -6 -6 ------- Run | Scr Mat Min Mat Min Zio Pro Fac Ext Slots Evolved 8 | . . . 2 . . . 6 . Power . | . . . . . . . . . Propulsion 2 | . . . 1 . . . 1 . Utility 6 | . . . 1 . . . 5 . Weapon . | . . . . . . . . . Parts Attached 77 | . 7 14 13 4 2 8 29 . Power 8 | . . 2 1 1 . 1 3 . Engine 5 | . . 1 . 1 . 1 2 . Core 3 | . . 1 1 . . . 1 . Reactor . | . . . . . . . . . Propulsion 25 | . 5 2 6 1 1 3 7 . Treads . | . . . . . . . . . Leg 23 | . 3 2 6 1 1 3 7 . Wheel . | . . . . . . . . . Hover 2 | . 2 . . . . . . . Flight . | . . . . . . . . . Utility 25 | . 2 3 2 1 . 1 16 . Device 11 | . 1 . 1 1 . . 8 . Storage 3 | . 1 1 . . . . 1 . Processor 7 | . . 2 . . . 1 4 . Hackware . | . . . . . . . . . Protection 4 | . . . 1 . . . 3 . Artifact . | . . . . . . . . . Weapon 19 | . . 7 4 1 1 3 3 . Energy Gun 1 | . . . . . . 1 . . Energy Cannon 2 | . . . 1 . . . 1 . Ballistic Gun 5 | . . 3 1 . . 1 . . Ballistic Cannon . | . . . . . . . . . Launcher 6 | . . 3 1 1 . 1 . . Special Weapon . | . . . . . . . . . Impact Weapon . | . . . . . . . . . Slashing Weapon 1 | . . . . . . . 1 . Piercing Weapon 2 | . . . . . 1 . 1 . Special Melee Weapon 2 | . . 1 1 . . . . . Unidentified Prototypes 1 | . . . 1 . . . . . Corrupted Parts 1 | . . . . 1 . . . . System Corruption 3 | . . . . 3 . . . . Parts Lost 20 | . . 3 . 1 . 8 8 . Power 6 | . . 1 . 1 . 1 3 . Propulsion 4 | . . . . . . 4 . . Utility 7 | . . 1 . . . 1 5 . Weapon 3 | . . 1 . . . 2 . . Highest Loss Streak 6 | . . 2 . 1 . 6 4 . Average Slot Usage (%) 93 | . 99 93 96 99 100 95 77 6 Engine 6 | . 14 2 . 8 11 11 . . Core 3 | . . 11 11 2 . . 1 . Leg 28 | . 22 26 30 33 33 30 23 . Device 7 | . 14 . 2 8 11 8 10 . Storage 10 | . 14 13 11 11 11 11 5 . Processor 7 | . . 12 11 2 . 10 15 6 Protection 6 | . . . 8 11 11 . 5 . Energy Cannon 1 | . . . 7 3 . . . . Ballistic Gun 11 | . 28 14 11 11 11 13 . . Launcher 3 | . . 1 . 8 3 8 . . Piercing Weapon 2 | . . . . . 7 . 5 . Special Melee Weapon 1 | . . 8 2 . . . . . Naked Turns 10 | . . 10 . . . . . . Heaviest Build 50 | 11 27 30 40 40 37 37 50 . Greatest Support 78 | 20 20 20 30 30 40 40 78 3 Greatest Overweight (x) 11 | . 3 1 1 1 1 1 11 . Average Overweight (x) . | . . . . 1 . . . . Largest Inventory Capacity 15 | . 15 15 15 15 15 15 15 5 Average Capacity 14 | . 14 14 15 15 15 15 14 5 Most Carried 15 | . 15 12 15 15 15 15 15 5 Average Carried 11 | . 10 7 11 14 14 14 10 5 Final Capacity 15 | 8 15 15 15 15 15 15 5 5 Final Carried 15 | 6 12 7 14 15 15 10 5 5 Class Distribution -------------------- 100% | Mutant Dominant Class ---------------- Mutant | -10/Materials Mutant | -10/Mines Mutant | -9/Materials Mutant | -9/Mines Mutant | -7/Zion Mutant | -6/Proximity Caves Mutant | -6/Factory Mutant | -6/Extension Resources | -11 -10 -10 -9 -9 -7 -6 -6 -6 ----------- Run | Scr Mat Min Mat Min Zio Pro Fac Ext Matter Collected 1268 | 200 98 269 198 115 42 72 274 . Remotely . | . . . . . . . . . Salvage Created 1502 | . 164 128 575 248 . 84 303 . Parts 89 | . 7 6 38 15 . 2 21 . Haulers Intercepted . | . . . . . . . . . Recyclers Shooed 1 | . . . 1 . . . . . Parts Field Recycled . | . . . . . . . . . Retrieved Matter . | . . . . . . . . . Parts Self-Destructed 1 | . . . . . . 1 . . Prevented . | . . . . . . . . . Kills | -11 -10 -10 -9 -9 -7 -6 -6 -6 ------- Run | Scr Mat Min Mat Min Zio Pro Fac Ext Combat Hostiles Destroyed 46 | . 4 5 17 7 . 5 8 . Melee 8 | . . . . . . . 8 . Guns 14 | . 4 4 3 1 . 2 . . Cannons 15 | . . . 11 4 . . . . AOE 9 | . . 1 3 2 . 3 . . Classes Destroyed 8 | . 1 2 1 2 . . 2 . Worker 4 | . . 1 . . . . 3 . Tunneler 1 | . . . . 1 . . . . Swarmer 23 | . . 3 7 3 . 4 6 . Grunt 17 | . 4 2 8 3 . . . . Brawler 1 | . . . . 1 . . . . Sentry 3 | . . . 2 . . 1 . . Hunter 1 | . . . . . . . 1 . Programmer 1 | . . . . . . . 1 . Best Kill Streak 5 | . 2 4 5 3 . 5 3 . Combat Bots Only 5 | . 2 2 5 3 . 5 3 . Max Kills in Single Turn 2 | . 1 1 1 1 . 2 2 . Gunslinging . | . . . . . . . . . Exploded 2 | . . 1 1 1 . 2 . . Melee 1 | . . . . . . . 1 . Uniques/NPCs Destroyed . | . . . . . . . . . Combat | -11 -10 -10 -9 -9 -7 -6 -6 -6 -------- Run | Scr Mat Min Mat Min Zio Pro Fac Ext Damage Taken 4176 | . 284 309 440 267 . 751 2032 93 Core 1194 | . 53 106 93 11 . 78 760 93 Absorbed by Shields . | . . . . . . . . . Core Remaining (%) 63 | 100 . 36 . . . 54 . . Volleys Fired 104 | . 17 29 34 15 . 9 . . Largest 2 | . 2 2 2 2 . 2 . . Hottest 86 | . 40 40 86 86 . 51 . . Shots Fired 179 | . 34 38 62 30 . 15 . . Gun 131 | . 34 36 34 15 . 12 . . Cannon 39 | . . . 26 13 . . . . Launcher 9 | . . 2 2 2 . 3 . . Special . | . . . . . . . . . Kinetic 131 | . 34 36 34 15 . 12 . . Thermal . | . . . . . . . . . Explosive 9 | . . 2 2 2 . 3 . . Electromagnetic 39 | . . . 26 13 . . . . Robot Hit Streak 14 | . 11 6 13 14 . 9 . . Robot Miss Streak 4 | . 2 3 2 4 . 3 . . Penetration Max . | . . . . . . . . . Secondary Targets . | . . . . . . . . . Shots Hit Robots 153 | . 26 29 40 17 . 13 28 . Core Hits 87 | . 12 12 25 10 . 15 13 . Critical Kills . | . . . . . . . . . Critical Parts Destroyed 1 | . . . . . . 1 . . Critical Strikes 6 | . . . . 2 . 1 3 . Destroy 1 | . . . . . . 1 . . Corrupt 2 | . . . . 2 . . . . Sever 2 | . . . . . . . 2 . Puncture 1 | . . . . . . . 1 . Melee Attacks 52 | . . 3 . . . . 49 . Impact . | . . . . . . . . . Slashing 13 | . . . . . . . 13 . Piercing 36 | . . . . . . . 36 . Sneak Attacks 7 | . . 3 . . . . 4 . Combat Hostiles . | . . . . . . . . . Follow-up Attacks 12 | . . . . . . . 12 . Damage Inflicted 3729 | . 255 441 829 451 . 465 1288 . Guns 988 | . 255 281 142 99 . 211 . . Cannons 759 | . . . 542 217 . . . . Explosions 677 | . . 160 145 118 . 254 . . Melee 1228 | . . . . . . . 1228 . Ramming 77 | . . . . 17 . . 60 . Kinetic 988 | . 255 281 142 99 . 211 . . Thermal 111 | . . . 111 . . . . . Explosive 566 | . . 160 34 118 . 254 . . Electromagnetic 759 | . . . 542 217 . . . . Impact . | . . . . . . . . . Slashing 474 | . . . . . . . 474 . Piercing 754 | . . . . . . . 754 . Highest Corruption 4 | . . . . 4 4 . 4 4 Average Corruption 3 | . . . . 3 4 . 3 4 Corruption Purged . | . . . . . . . . . Effects 26 | . . . . 15 6 . 4 1 Message Errors 8 | . . . . 7 1 . . . Matter Fused 4 | . . . . 2 2 . . . Heat Flow Errors 1 | . . . . . . . 1 . Energy Discharges 5 | . . . . 3 . . 2 . Data Loss (minor) 8 | . . . . 3 3 . 1 1 Overload Shots . | . . . . . . . . . Overflow Damage 136 | . . . 3 3 . 22 108 . Projectiles 6 | . . . 3 3 . . . . Explosions 22 | . . . . . . 22 . . Melee 108 | . . . . . . . 108 . Knockbacks . | . . . . . . . . . Impact . | . . . . . . . . . Kinetic . | . . . . . . . . . Secondary . | . . . . . . . . . Self-Inflicted Damage 239 | . . 26 77 68 . 43 25 . Shots 10 | . . 2 4 2 . 2 . . Rammed 13 | . . . . . . . 13 . Targets Rammed 15 | . . . . 2 . . 13 . Kicked 2 | . . . . 2 . . . . Crushed . | . . . . . . . . . Highest Temperature 236 | . 9 10 236 180 . 12 187 . Average Temperature 77 | . 8 8 94 81 . 8 92 . Received Heat Transfer 822 | . 159 102 132 54 . 246 105 24 Siege Activations . | . . . . . . . . . Robots Corrupted . | . . . . . . . . . Combat Hostiles . | . . . . . . . . . Parts Fried 3 | . . . 1 2 . . . . Impact Corruptions 1 | . . . . . . . 1 . Robots Melted . | . . . . . . . . . Combat Hostiles . | . . . . . . . . . Parts Melted 1 | . . . 1 . . . . . Heat Transferred 200 | . . . 200 . . . . . Parts Sabotaged . | . . . . . . . . . Parts Stolen . | . . . . . . . . . Parts Stripped . | . . . . . . . . . Power Chain Reactions 2 | . . . 2 . . . . . Missiles Intercepted . | . . . . . . . . . Alert | -11 -10 -10 -9 -9 -7 -6 -6 -6 ------- Run | Scr Mat Min Mat Min Zio Pro Fac Ext Peak Influence 527 | . 119 115 527 341 . . 185 110 Initial 205 | . . 5 . 205 . . 2 80 Average 105 | . 49 52 271 129 . . 49 80 Maximum Alert Level 2 | . . . 2 1 . . . . Low Security (%) 80 | . 100 100 28 66 . . 100 100 Level 1 17 | . . . 57 33 . . . . Level 2 2 | . . . 13 . . . . . Level 3 . | . . . . . . . . . Level 4 . | . . . . . . . . . Level 5 . | . . . . . . . . . High Security . | . . . . . . . . . Max Security . | . . . . . . . . . Squads Dispatched 2 | . . . . 1 . . 1 . Investigation . | . . . . . . . . . Extermination 1 | . . . . . . . 1 . Reinforcement . | . . . . . . . . . Assault 1 | . . . . 1 . . . . Garrison . | . . . . . . . . . Intercept . | . . . . . . . . . Construction Impeded . | . . . . . . . . . Haulers Reinforced . | . . . . . . . . . Active Scanning Responses . | . . . . . . . . . Cargo Convoy Interrupts . | . . . . . . . . . Stealth | -11 -10 -10 -9 -9 -7 -6 -6 -6 --------- Run | Scr Mat Min Mat Min Zio Pro Fac Ext Distress Signals 10 | . 2 . 7 . . . 1 . Communications Jammed . | . . . . . . . . . Distress Signals . | . . . . . . . . . Times Spotted 120 | . 8 27 32 8 . 10 31 4 Peak Tracking Total 13 | . 3 13 8 3 . 5 12 4 Tactical Retreats 7 | . . 1 . . . 1 5 . Traps | -11 -10 -10 -9 -9 -7 -6 -6 -6 ------- Run | Scr Mat Min Mat Min Zio Pro Fac Ext Traps Triggered . | . . . . . . . . . Indirectly . | . . . . . . . . . Trap Hack Attempts . | . . . . . . . . . Triggered . | . . . . . . . . . Disarmed . | . . . . . . . . . Reprogrammed . | . . . . . . . . . Reused . | . . . . . . . . . Traps Extracted . | . . . . . . . . . Installed . | . . . . . . . . . Triggered . | . . . . . . . . . Machines | -11 -10 -10 -9 -9 -7 -6 -6 -6 ---------- Run | Scr Mat Min Mat Min Zio Pro Fac Ext Machines Disabled 3 | . . . 3 . . . . . Max in Single Turn 2 | . . . 2 . . . . . Machines Sabotaged . | . . . . . . . . . Garrisons Compromised . | . . . . . . . . . Overloaded Fab Kills . | . . . . . . . . . Hacking | -11 -10 -10 -9 -9 -7 -6 -6 -6 --------- Run | Scr Mat Min Mat Min Zio Pro Fac Ext Machines Accessed 10 | . 2 1 5 . . . 2 . Terminals 6 | . 2 . 3 . . . 1 . Fabricators . | . . . . . . . . . Repair Stations . | . . . . . . . . . Recycling Units 1 | . . . 1 . . . . . Scanalyzers 1 | . . . 1 . . . . . Garrison Access 1 | . . . . . . . 1 . Total Hacks 19 | . 4 1 10 . . . 4 . Successful 11 | . 3 1 7 . . . . . Failed 8 | . 1 . 3 . . . 4 . Catastrophic 2 | . 1 . . . . . 1 . Database Lockouts . | . . . . . . . . . Manual 10 | . 3 . 5 . 1 . 1 . Terminals 10 | . 4 . 5 . . . 1 . Fabricators . | . . . . . . . . . Repair Stations . | . . . . . . . . . Recycling Units 1 | . . . 1 . . . . . Scanalyzers 4 | . . . 4 . . . . . Garrison Access 3 | . . . . . . . 3 . Terminal Hacks 2 | . 1 1 . . . . . . Robot Analysis 1 | . 1 . . . . . . . Open Door 1 | . . 1 . . . . . . Fabricator Hacks . | . . . . . . . . . Repair Station Hacks . | . . . . . . . . . Recycling Unit Hacks 1 | . . . 1 . . . . . Report Inventory 1 | . . . 1 . . . . . Scanalyzer 4 | . . . 4 . . . . . Insert Component 2 | . . . 2 . . . . . Analyze 2 | . . . 2 . . . . . Garrison Access Hacks . | . . . . . . . . . Unauthorized Hacks 4 | . 2 . 2 . . . . . Terminals 4 | . 2 . 2 . . . . . Track 1 | . . . 1 . . . . . Botnet 3 | . 2 . 1 . . . . . Fabricators . | . . . . . . . . . Repair Stations . | . . . . . . . . . Recycling Units . | . . . . . . . . . Scanalyzers . | . . . . . . . . . Garrison Access . | . . . . . . . . . Data Cores Recovered . | . . . . . . . . . Used . | . . . . . . . . . Hacking Detections 8 | . 2 . 4 . . . 2 . Full Trace Events . | . . . . . . . . . Feedback Events . | . . . . . . . . . Feedback Blocked . | . . . . . . . . . Robot Schematics Acquired 2 | . . . . . 2 . . . Robots Built . | . . . . . . . . . Authchips . | . . . . . . . . . Time . | . . . . . . . . . Total Robot Build Rating . | . . . . . . . . . Part Schematics Acquired 17 | . . . 2 . 15 . . . Parts Built . | . . . . . . . . . Authchips . | . . . . . . . . . Time . | . . . . . . . . . Total Part Build Rating . | . . . . . . . . . Parts Repaired . | . . . . . . . . . Time . | . . . . . . . . . Parts Recycled . | . . . . . . . . . Recycled Matter . | . . . . . . . . . Retrieved Matter . | . . . . . . . . . Retrieved Components . | . . . . . . . . . Parts Scanalyzed 2 | . . . 2 . . . . . Part Schematics Acquired 2 | . . . 2 . . . . . Parts Damaged 1 | . . . 1 . . . . . Bothacking | -11 -10 -10 -9 -9 -7 -6 -6 -6 ------------ Run | Scr Mat Min Mat Min Zio Pro Fac Ext Used RIF Installer . | . . . . . . . . . Robots Hacked 2 | . . 2 . . . . . . Non-combat 1 | . . 1 . . . . . . Combat 1 | . . 1 . . . . . . Robot Hacks Applied 3 | . . 3 . . . . . . parse_system 2 | . . 2 . . . . . . no_distress 1 | . . 1 . . . . . . Relay Couplers Released . | . . . . . . . . . Fabnet Peak Effective % . | . . . . . . . . . Robots Rewired . | . . . . . . . . . Allies Hacked . | . . . . . . . . . Hacks Repelled . | . . . . . . . . . Allies | -11 -10 -10 -9 -9 -7 -6 -6 -6 -------- Run | Scr Mat Min Mat Min Zio Pro Fac Ext Total Allies 5 | . . 4 . 1 . . . . Largest Group 3 | . . 3 3 1 . . . . Highest-Rated Group 40 | . . 40 40 31 . . . . Highest-Rated Ally 31 | . . 31 16 31 . . . . Total Orders . | . . . . . . . . . Ally Attacks 43 | . . 7 36 . . . . . Total Damage 394 | . . 82 312 . . . . . Kills 10 | . . 2 8 . . . . . Allies Corrupted 1 | . . . . 1 . . . . Allies Melted . | . . . . . . . . . Intel | -11 -10 -10 -9 -9 -7 -6 -6 -6 ------- Run | Scr Mat Min Mat Min Zio Pro Fac Ext Robot Analysis Total 1 | . 1 . . . . . . . Derelict Logs Recovered 6 | . . 1 . 1 2 2 . . Drone Launches . | . . . . . . . . . Drone Recoveries . | . . . . . . . . . Exploration | -11 -10 -10 -9 -9 -7 -6 -6 -6 ------------- Run | Scr Mat Min Mat Min Zio Pro Fac Ext Turns Passed 6940 | . 525 1246 757 1209 1595 491 1065 52 Spaces Moved 3806 | 1 271 663 330 602 871 338 627 103 Core 302 | . . 78 . . . . 121 103 Treads . | . . . . . . . . . Legs 3419 | 1 186 585 330 602 871 338 506 . Wheels . | . . . . . . . . . Hover 85 | . 85 . . . . . . . Flight . | . . . . . . . . . Fastest Speed 50 | 120 116 50 120 190 126 126 50 50 Average Speed 164 | 120 160 173 188 190 181 134 128 50 Slowest Speed 600 | 120 260 190 190 190 190 190 600 50 Overloaded Moves . | . . . . . . . . . Propulsion Burnouts . | . . . . . . . . . Robots Hopped . | . . . . . . . . . Cave-ins Triggered . | . . . . . . . . . Exploration Rate (%) 53 | 2 54 98 47 100 83 51 22 21 Regions Visited 8 Branch Regions 5 Pre-discovered Areas 4 | . . 1 . . 3 . . . Known Exits Taken 4 | . . 1 1 1 . 1 . . Unknown Exits Taken 4 | 1 1 . . . 1 . 1 . Scrap Searched 9 | . . 3 . 1 3 2 . . Spaces Dug . | . . . . . . . . . Terrain Destroyed 69 | . . 12 13 20 . 24 . . Melee . | . . . . . . . . . Projectile . | . . . . . . . . . AOE 69 | . . 12 13 20 . 24 . . Terrain Rammed . | . . . . . . . . . Walls Destroyed . | . . . . . . . . . Machines Disabled . | . . . . . . . . . Actions | -11 -10 -10 -9 -9 -7 -6 -6 -6 --------- Run | Scr Mat Min Mat Min Zio Pro Fac Ext Total 4245 | . 331 719 407 634 889 359 803 103 Wait 141 | . 20 3 20 10 . . 88 . Move 3798 | . 270 662 329 601 870 337 626 103 Hop . | . . . . . . . . . Pick Up 34 | . 7 4 6 2 8 2 5 . Fast Attach 28 | . 5 6 2 . . 1 14 . Attach 15 | . . 4 1 1 . 5 4 . Detach 4 | . 3 . . . . . 1 . Swap 34 | . 2 4 10 3 2 2 11 . Drop 29 | . 7 . 5 . 9 3 5 . Fire 104 | . 17 29 34 15 . 9 . . Melee 39 | . . 3 . . . . 36 . Ram 13 | . . . . . . . 13 . Kick 2 | . . . . 2 . . . . Crush . | . . . . . . . . . Escape Stasis . | . . . . . . . . . Rewire 4 | . . 4 . . . . . . Trap . | . . . . . . . . . Miscellaneous . | . . . . . . . . . Route ------- -11/Scrapyard -10/Materials (discovered 2 exits: *Mat / *Min) -10/Mines (discovered 3 exits: *Mat x2 / [*Exi]) -9/Materials (discovered 2 exits: *Mat / *Min) -9/Mines (discovered 3 exits: *Mat x2 / *Zio) -7/Zion -6/Proximity Caves -6/Factory -6/Extension History --------- Turn | Location | Event 1 | -11/Scrapyard | Discovered new exit (range 0) 1 | -11/Scrapyard | Entered Materials 315 | -10/Materials | Build established: Mutant 327 | -10/Materials | Discovered new exit (range 11) 452 | -10/Materials | Discovered new exit (range 16) 526 | -10/Materials | Entered Mines 528 | -10/Mines | Discovered new exit (range 11) 587 | -10/Mines | Core integrity fell below 50% 707 | -10/Mines | Assembled infested the area 721 | -10/Mines | Released all parts (7) 738 | -10/Mines | Met 8R-AWN 755 | -10/Mines | Received a Mining Laser from a helpful Derelict 864 | -10/Mines | Learned location of Zion (-7) 999 | -10/Mines | Found the Drone Emporium 1067 | -10/Mines | Discovered new exit (range 5) 1183 | -10/Mines | Discovered new exit (range 5) 1187 | -10/Mines | Identified exit to Materials 1312 | -10/Mines | Assisted by bots powering up and referring to "LRC-V3" 1772 | -10/Mines | Entered Materials 1772 | -9/Materials | Accompanied by 3 allies 1772 | -9/Materials | Evolved 2 slots: Propulsion x1, Utility x1 2225 | -9/Materials | Discovered new exit (range 12) 2516 | -9/Materials | Discovered new exit (range 8) 2527 | -9/Materials | Identified exit to Mines 2529 | -9/Materials | Entered Mines 2530 | -9/Mines | A Derelict revealed a hidden shortcut to a safe place 2535 | -9/Mines | Identified exit to Zion 2614 | -9/Mines | Discovered new exit (range 5) 2622 | -9/Mines | Identified exit to Materials 2770 | -9/Mines | Met a Derelict testing a Signal Generator 2908 | -9/Mines | Discovered exit to Materials (range 16) 3287 | -9/Mines | Learned 4 Materials zone layouts 3738 | -9/Mines | Entered Zion 3851 | -7/Zion | Discovered new exit (range 14) 3953 | -7/Zion | System corruption cleaned by Quarantine Array 4037 | -7/Zion | Learned location of Quarantine (-2) 4156 | -7/Zion | Learned location of Warlord (-4) 4191 | -7/Zion | Learned Factory stockpile data 4281 | -7/Zion | Found CR-A16's Pointy Stick 4788 | -7/Zion | Received a visual enhancement algorithm 4936 | -7/Zion | Given the Hacking Drone Bay 4941 | -7/Zion | Found Prototype Device 4983 | -7/Zion | Learned Factory terminal intel 5333 | -7/Zion | Entered Proximity Caves 5704 | -6/Proximity Caves | Attracted the attention of an 0b10 checkpoint 5706 | -6/Proximity Caves | Identified exit to Factory 5749 | -6/Proximity Caves | Spotted B-75 Beast 5781 | -6/Proximity Caves | Lost 6 parts (1p3n1u1w) 5824 | -6/Proximity Caves | Entered Factory 5824 | -6/Factory | Evolved 6 slots: Propulsion x1, Utility x5 5826 | -6/Factory | Loaded intel: 28 terminal locations 6812 | -6/Factory | Released all parts (12) 6844 | -6/Factory | Core integrity fell below 50% 6847 | -6/Factory | Lost 4 parts (1p3u) 6881 | -6/Factory | Discovered new exit (range 15) 6884 | -6/Factory | Core integrity fell below 20% 6889 | -6/Factory | Entered Extension 6938 | -6/Extension | Spotted B-75 Beast 6940 | -6/Extension | Spotted B-75 Beast 6941 | -6/Extension | Destroyed by Y-54 Guardian with Gatling Laser Last Messages --------------- 06832_ Destabilizing: Short circuit. 06836_ Acquired 17 matter. 06836_ Slug penetrates Wall. 06843_ Penetrated by Slug. 06843_ Slug penetrates S-27 Virus. 06843_ S-27 Virus destroyed. 06844_ Slammed into U-05 Engineer. 06845_ S-27 Virus destroyed. 06846_ Slammed into A-15 Conveyor. 06868_ Slammed into T-07 Excavator. 06870_ Destabilizing: System corrupted (+1). 06873_ Slammed into T-07 Excavator. 06874_ Slammed into U-05 Engineer. 06875_ System corrupted: Energy discharge (-32). 06878_ Dropped Imp. Assault Rifle. 06878_ Acquired Nuclear Pulse Thruster. 06881_ EXIT=FOUND LOCATION=UNKNOWN GOAL=ESCAPE 06927_ System corrupted: Component data lost. Map ----- +----------------------------------------------------+ | ?????????????????????????????????????????????????? | | ?????????????????????????????????????????????????? | | ?????????????????????????????????????????????????? | | ?????????????????????????????????????????????????? | | ?????????????????????????????????????????????????? | | ?????????????????????????????????????????????????? | | ?????????????????????????????????????????????????? | | ?????????????????????????????????????????????????? | | ?????????????????????????????????????????????????? | | ?????????????????????????????????????????????????? | | ?????????????????????????????????????????????????? | | ?????????????????????????????????????????????????? | | ?????????????????????????????????????????????????? | | ?????????????????????????????????????????????????? | | ????????????????????????????? #??##??????????????? | | ????????????????????????????# ### ## ????????????? | | ????????????????????????????" ""Y Y ???????????? | | ??????????????????????????? " " ???????????? | | ??????????????????????????? u ??????????? | | ??????????????????????????? ??????????? | | ########################### ??????????? | | R ?????????? | | R ?????????? | | ????????? | | k ????????? | | t @ ????????? | | ########################### BB BB ????????? | | ????????????????????????????? BB BB ????????? | | ??????????????????????????????? ?????????? | | ????????????????????????????????? ?????????? | | ??????????????????????????????????? ??????????? | | ?????????????????????????????????????##??????????? | | ?????????????????????????????????????????????????? | | ?????????????????????????????????????????????????? | | | | | | | | | | | | | | | | | | | | | | | | | | | | | | | | | +----------------------------------------------------+ Best States ------------- Heat Dissipation 50 Energy Generation 15 Energy Capacity 275 Matter Stores 300 Matter Capacity 300 Sight Range 16 Robot Scan Range 16 Terrain Scan Density 110 Jamming Range 12 Armor Coverage 450 Resistance: TH 10 Phase Shifting 5 Evasion (%) 55 Targeting Accuracy 5 Target Analysis 5 Kinecelleration 30 Item Schematics ----------------- Grenade Launcher | -9/Materials | Scanalyzed Sml. Storage Unit | -9/Materials | Scanalyzed Power Maul | -7/Zion | Archive Force Rifle | -7/Zion | Archive Lyr. Light Armor Plating | -7/Zion | Archive Imp. Proton Missile Launcher | -7/Zion | Archive System Backup Module | -7/Zion | Archive Core Analyzer | -7/Zion | Archive Fission Core | -7/Zion | Archive Mass Driver | -7/Zion | Archive Fusion Compressor | -7/Zion | Archive Spear | -7/Zion | Archive Power Sword | -7/Zion | Archive Mak. Spear | -7/Zion | Archive Imp. Medium Treads | -7/Zion | Archive Hvy. Ion Cannon | -7/Zion | Archive Arm. Medium Treads | -7/Zion | Archive Robot Schematics ------------------ R-06 Scavenger | -7/Zion | Archive L-41 Fighter | -7/Zion | Archive Fabricated ------------ Nothing Alien Tech Used ----------------- None Achievements -------------- None Challenges ------------ None Game ------ Seed ProcessingMicrowarpBattery Manual? 0 Play Time 00:44:58 Cumulative 60.0 hours Start 2021.11.20 @ 20:06:27 End 2021.11.20 @ 21:03:32 Sessions 3 Manual Loads 0 Difficulty Rogue Special Mode None Game No. 69 Rogue 49 Adventurer 17 Explorer 3 Win Type - Total 1 Types 0/0/1/0/0/0/0/0/0 Lore% 36 Gallery% 42 Achievement% 42 Wizard Run 0 Options --------- ASCII 1 Keyboard 1 Movement Vi Keybinds 0 Fullscreen 1 Font 18/Terminus Map View 83x54 Tactical HUD 1 Map Filters SATURATION(80) Filters SATURATION(80) Steam 1 RUN: 894da4e7-c5cd-4234-b5ae-e3433c118698